[Event "FIDE World Cup G12-B 2024"]
[Site "Batumi"]
[Date "2024.06.26"]
[Round "4.8"]
[White "Chiokadze, Barbare"]
[Black "Gao, Lilianna"]
[Result "0-1"]
[ECO "D85"]
[WhiteElo "1461"]
[BlackElo "1646"]
[Annotator "NA RC"]
[PlyCount "58"]
[EventDate "2024.06.23"]
[EventType "swiss"]
[EventCountry "GEO"]
[SourceTitle "playchess.com"]
[Source "ChessBase"]
[SourceQuality "1"]
[TimeControl "5400+30"]

1. d4 {[%emt 0:00:01]} Nf6 {[%emt 0:00:28]} 2. c4 {[%emt 0:00:05]} g6 {[%emt 0:00:32]} 3. Nc3 {[%emt 0:00:05]} d5 {[%emt 0:00:24]} 4. cxd5 {[%emt 0:00:33]} Nxd5 {[%emt 0:00:32]} 5. e4 {[%emt 0:00:11]} Nxc3 {[%emt 0:00:25]} 6. bxc3 {[%emt 0:00:04]} Bg7 {[%emt 0:00:33]} 7. Bf4 {[%emt 0:00:37]} c5 {[%emt 0:00:59]} 8. Nf3 {[%emt 0:02:05]} Nc6 {[%emt 0:02:06]} 9. Be3 {[%emt 0:02:02]} Bg4 {[%emt 0:04:24]} 10. Bc4 {[%emt 0:17:17]} O-O {[%emt 0:04:27]} 11. Bd5 {[%emt 0:04:33]} Bxf3 {[%emt 0:10:22]} 12. Qxf3 {[%emt 0:00:30]} cxd4 {[%emt 0:01:31]} 13. cxd4 {[%emt 0:01:01]} Nxd4 {[%emt 0:02:17]} 14. Bxd4 {[%emt 0:00:26]} Bxd4 {[%emt 0:00:27]} 15. Rd1 {[%emt 0:04:21]} Qa5+ {[%emt 0:00:47]} 16. Kf1 {[%emt 0:02:09]} Bg7 {[%emt 0:02:02]} 17. g3 {[%emt 0:03:40]} Rac8 {[%emt 0:02:53]} 18. Bxb7 {[%emt 0:05:37]} Qb5+ {[%emt 0:03:11]} 19. Kg2 {[%emt 0:00:14]} Qxb7 {[%emt 0:00:50]} 20. h4 {[%emt 0:01:33]} Rc3 {[%emt 0:01:44]} 21. Qe2 {[%emt 0:02:48]} f5 {[%emt 0:05:36]} 22. f3 {[%emt 0:05:47]} fxe4 {[%emt 0:05:53]} 23. fxe4 {[%emt 0:00:56]} Qc7 {[%emt 0:04:20]} 24. Qg4 {[%emt 0:02:02]} Rc2+ {[%emt 0:01:12]} 25. Kh3 {[%emt 0:01:21]} Qc6 {[%emt 0:07:18]} 26. Rd7 {[%emt 0:09:50]} h5 {[%emt 0:03:57]} 27. Qd1 {[%emt 0:01:00]} Qe6+ {[%emt 0:00:29]} 28. g4 {[%emt 0:00:27]} hxg4+ {[%emt 0:01:34]} 29. Qxg4 {[%emt 0:00:12]} Rf3# {[%emt 0:01:04]} 0-1

[Event "FIDE World Cup G12-B 2024"]
[Site "Batumi"]
[Date "2024.06.26"]
[Round "4.9"]
[White "Siddhi Rao"]
[Black "Lu, Yichen"]
[Result "1/2-1/2"]
[ECO "C10"]
[WhiteElo "1601"]
[BlackElo "1561"]
[Annotator "NA RC"]
[PlyCount "94"]
[EventDate "2024.06.23"]
[EventType "swiss"]
[EventCountry "GEO"]
[SourceTitle "playchess.com"]
[Source "ChessBase"]
[SourceQuality "1"]
[TimeControl "5400+30"]

1. e4 {[%emt 0:00:03]} e6 {[%emt 0:00:07]} 2. d4 {[%emt 0:00:03]} d5 {[%emt 0:00:07]} 3. Nc3 {[%emt 0:00:02]} dxe4 {[%emt 0:00:24]} 4. Nxe4 {[%emt 0:00:06]} Nd7 {[%emt 0:00:08]} 5. Nf3 {[%emt 0:00:07]} Ngf6 {[%emt 0:00:16]} 6. Bd3 {[%emt 0:00:26]} Nxe4 {[%emt 0:03:30]} 7. Bxe4 {[%emt 0:00:03]} Nf6 {[%emt 0:00:40]} 8. Bd3 {[%emt 0:00:15]} Be7 {[%emt 0:03:41]} 9. O-O {[%emt 0:02:56]} O-O {[%emt 0:02:31]} 10. Re1 {[%emt 0:00:43]} b6 {[%emt 0:00:20]} 11. Bf4 {[%emt 0:03:05]} Bb7 {[%emt 0:00:25]} 12. Be5 {[%emt 0:01:27]} c5 {[%emt 0:08:02]} 13. c3 {[%emt 0:02:19]} Rc8 {[%emt 0:06:41]} 14. a4 {[%emt 0:02:33]} Bd6 {[%emt 0:00:56]} 15. Qe2 {[%emt 0:12:30]} Qe7 {[%emt 0:03:49]} 16. Rad1 {[%emt 0:05:40]} Rfd8 {[%emt 0:02:03]} 17. Nd2 {[%emt 0:20:04]} cxd4 {[%emt 0:03:45]} 18. cxd4 {[%emt 0:02:33]} Bb4 {[%emt 0:01:01]} 19. Rc1 {[%emt 0:05:56]} Bxd2 {[%emt 0:04:46]} 20. Qxd2 {[%emt 0:00:46]} Ng4 {[%emt 0:03:32]} 21. Rxc8 {[%emt 0:07:30]} Rxc8 {[%emt 0:04:02]} 22. Qf4 {[%emt 0:04:58]} Qb4 {[%emt 0:03:49]} 23. Rc1 {[%emt 0:04:29]} Rxc1+ {[%emt 0:07:46]} 24. Qxc1 {[%emt 0:00:03]} Nxe5 {[%emt 0:02:01]} 25. dxe5 {[%emt 0:00:02]} Qc5 {[%emt 0:03:40]} 26. Qxc5 {[%emt 0:03:43]} bxc5 {[%emt 0:00:03]} 27. g3 {[%emt 0:00:54]} h6 {[%emt 0:00:35]} 28. f4 {[%emt 0:00:50]} Kf8 {[%emt 0:00:53]} 29. Kf2 {[%emt 0:00:13]} Bd5 {[%emt 0:02:54]} 30. Ke3 {[%emt 0:01:06]} Ke7 {[%emt 0:01:54]} 31. Bb5 {[%emt 0:00:26]} f6 {[%emt 0:03:49]} 32. h4 {[%emt 0:02:59]} f5 {[%emt 0:04:39]} 33. Be2 {[%emt 0:01:16]} Kd7 {[%emt 0:00:42]} 34. Kd2 {[%emt 0:00:27]} Kc7 {[%emt 0:00:53]} 35. Kc3 {[%emt 0:01:32]} Kb6 {[%emt 0:01:36]} 36. g4 {[%emt 0:01:14]} Be4 {[%emt 0:01:27]} 37. gxf5 {[%emt 0:05:40]} Bxf5 {[%emt 0:00:16]} 38. Bd3 {[%emt 0:00:38]} Bg4 {[%emt 0:00:24]} 39. Kc4 {[%emt 0:02:19]} a5 {[%emt 0:02:49]} 40. Bg6 {[%emt 0:02:24]} Be2+ {[%emt 0:00:35]} 41. Kc3 {[%emt 0:00:21]} Bg4 {[%emt 0:00:17]} 42. b3 {[%emt 0:02:03]} Kc6 {[%emt 0:00:33]} 43. Be4+ {[%emt 0:00:39]} Kc7 {[%emt 0:01:11]} 44. Kd3 {[%emt 0:01:06]} Kb6 {[%emt 0:00:43]} 45. Kc3 {[%emt 0:01:55]} Kc7 {[%emt 0:00:24]} 46. Kc4 {[%emt 0:00:39]} Kb6 {[%emt 0:00:07]} 47. Bd3 {[%emt 0:01:46]} Kc6 {[%emt 0:00:34]} 1/2-1/2

[Event "FIDE World Cup G12-B 2024"]
[Site "Batumi"]
[Date "2024.06.26"]
[Round "4.10"]
[White "Vazquez Sanchez, Antia"]
[Black "Rusitashvili, Tea"]
[Result "1-0"]
[ECO "E02"]
[WhiteElo "1607"]
[BlackElo "1535"]
[Annotator "NA RC"]
[PlyCount "141"]
[EventDate "2024.06.23"]
[EventType "swiss"]
[EventCountry "GEO"]
[SourceTitle "playchess.com"]
[Source "ChessBase"]
[SourceQuality "1"]
[TimeControl "5400+30"]

1. d4 {[%emt 0:00:04]} d5 {[%emt 0:00:07]} 2. Nf3 {[%emt 0:00:11]} e6 {[%emt 0:00:09]} 3. c4 {[%emt 0:00:27]} Nf6 {[%emt 0:00:15]} 4. Qc2 {[%emt 0:00:30]} dxc4 {[%emt 0:00:40]} 5. Qxc4 {[%emt 0:00:41]} Nbd7 {[%emt 0:01:54]} 6. g3 {[%emt 0:07:52]} Be7 {[%emt 0:03:52]} 7. Bg2 {[%emt 0:01:13]} O-O {[%emt 0:01:39]} 8. O-O {[%emt 0:00:45]} c5 {[%emt 0:03:26]} 9. Rd1 {[%emt 0:03:41]} cxd4 {[%emt 0:05:34]} 10. Nxd4 {[%emt 0:01:06]} Bc5 {[%emt 0:01:45]} 11. b4 {[%emt 0:04:48]} Bb6 {[%emt 0:02:35]} 12. Bb2 {[%emt 0:03:23]} Ne5 {[%emt 0:04:17]} 13. Qb3 {[%emt 0:11:05]} Qe7 {[%emt 0:03:34]} 14. Nd2 {[%emt 0:02:13]} Rd8 {[%emt 0:04:44]} 15. Ne4 {[%emt 0:05:47]} Nd5 {[%emt 0:05:34]} 16. a3 {[%emt 0:03:50]} Ng4 {[%emt 0:08:21]} 17. h3 {[%emt 0:06:11]} Ngf6 {[%emt 0:07:31]} 18. Rac1 {[%emt 0:03:54]} Rb8 {[%emt 0:15:47]} 19. Nc5 {[%emt 0:03:34]} Bd7 {[%emt 0:02:28]} 20. e4 {[%emt 0:06:41]} Nc7 {[%emt 0:04:02]} 21. a4 {[%emt 0:04:56]} a5 {[%emt 0:02:30]} 22. Ba3 {[%emt 0:02:08]} Qe8 {[%emt 0:04:17]} 23. b5 {[%emt 0:02:21]} Bxc5 {[%emt 0:05:43]} 24. Bxc5 {[%emt 0:01:09]} Na8 {[%emt 0:03:20]} 25. e5 {[%emt 0:07:49]} Nd5 {[%emt 0:01:04]} 26. Bd6 {[%emt 0:02:55]} Nab6 {[%emt 0:03:25]} 27. Bxb8 {[%emt 0:01:23]} Rxb8 {[%emt 0:00:06]} 28. h4 {[%emt 0:01:19]} h6 {[%emt 0:00:57]} 29. Nc2 {[%emt 0:01:19]} Rc8 {[%emt 0:00:45]} 30. Na3 {[%emt 0:03:55]} Qe7 {[%emt 0:01:33]} 31. Nc4 {[%emt 0:01:10]} Nxc4 {[%emt 0:01:46]} 32. Rxc4 {[%emt 0:00:06]} Nb6 {[%emt 0:00:21]} 33. Rcd4 {[%emt 0:01:22]} Rc7 {[%emt 0:00:45]} 34. Qd3 {[%emt 0:00:48]} Qc5 {[%emt 0:00:26]} 35. Qe3 {[%emt 0:02:05]} Nc4 {[%emt 0:01:27]} 36. Qc3 {[%emt 0:01:38]} Nb6 {[%emt 0:01:08]} 37. Qxc5 {[%emt 0:01:15]} Rxc5 {[%emt 0:00:04]} 38. Bxb7 {[%emt 0:01:09]} Rc7 {[%emt 0:00:46]} 39. Be4 {[%emt 0:00:25]} g6 {[%emt 0:00:35]} 40. Rd6 {[%emt 0:00:16]} Nd5 {[%emt 0:00:12]} 41. Bxd5 {[%emt 0:00:06]} exd5 {[%emt 0:00:06]} 42. R1xd5 {[%emt 0:00:39]} Be6 {[%emt 0:00:17]} 43. Rd4 {[%emt 0:00:24]} Kg7 {[%emt 0:00:20]} 44. Rc6 {[%emt 0:00:19]} Rb7 {[%emt 0:00:21]} 45. Kf1 {[%emt 0:00:39]} Bd7 {[%emt 0:00:38]} 46. Ra6 {[%emt 0:00:22]} Rc7 {[%emt 0:00:06]} 47. Ke1 {[%emt 0:00:59]} h5 {[%emt 0:00:46]} 48. Rxa5 {[%emt 0:00:33]} Bg4 {[%emt 0:00:15]} 49. Kd2 {[%emt 0:00:36]} Bf5 {[%emt 0:00:08]} 50. Ke3 {[%emt 0:01:33]} Rc3+ {[%emt 0:00:40]} 51. Kd2 {[%emt 0:00:32]} Rc2+ {[%emt 0:00:36]} 52. Ke3 {[%emt 0:01:03]} Rc3+ {[%emt 0:00:16]} 53. Ke2 {[%emt 0:00:49]} Rc2+ {[%emt 0:00:26]} 54. Kf1 {[%emt 0:00:45]} Bg4 {[%emt 0:01:05]} 55. Kg2 {[%emt 0:00:12]} Rc3 {[%emt 0:00:28]} 56. Rf4 {[%emt 0:00:10]} Be6 {[%emt 0:00:17]} 57. b6 {[%emt 0:00:10]} Bd7 {[%emt 0:00:40]} 58. Kh2 {[%emt 0:00:38]} Rc1 {[%emt 0:00:53]} 59. Ra7 {[%emt 0:00:36]} Be6 {[%emt 0:00:36]} 60. Rc7 {[%emt 0:00:22]} Rb1 {[%emt 0:00:16]} 61. b7 {[%emt 0:00:39]} Bd5 {[%emt 0:00:15]} 62. f3 {[%emt 0:00:09]} Rb2+ {[%emt 0:00:16]} 63. Kh3 {[%emt 0:00:22]} Be6+ {[%emt 0:00:30]} 64. g4 {[%emt 0:00:06]} hxg4+ {[%emt 0:00:10]} 65. Kg3 {[%emt 0:00:36]} gxf3 {[%emt 0:00:44]} 66. Rxf3 {[%emt 0:00:04]} Bd5 {[%emt 0:00:17]} 67. Rd3 {[%emt 0:00:27]} Bxb7 {[%emt 0:02:08]} 68. e6 {[%emt 0:00:14]} Rg2+ {[%emt 0:00:24]} 69. Kh3 {[%emt 0:00:09]} Rg1 {[%emt 0:00:58]} 70. Rxf7+ {[%emt 0:00:40]} Kh6 {[%emt 0:00:10]} 71. Rxb7 {[%emt 0:00:07]} 1-0

[Event "FIDE World Cup G12-B 2024"]
[Site "Batumi"]
[Date "2024.06.26"]
[Round "4.11"]
[White "Bechvaia, Anastasia"]
[Black "Kvirkvelia, Anastasia"]
[Result "0-1"]
[ECO "B11"]
[WhiteElo "1549"]
[BlackElo "1440"]
[Annotator "NA RC"]
[PlyCount "104"]
[EventDate "2024.06.23"]
[EventType "swiss"]
[EventCountry "GEO"]
[SourceTitle "playchess.com"]
[Source "ChessBase"]
[SourceQuality "1"]
[TimeControl "5400+30"]

1. e4 {[%emt 0:00:01]} c6 {[%emt 0:00:04]} 2. Nf3 {[%emt 0:00:05]} d5 {[%emt 0:00:03]} 3. Nc3 {[%emt 0:00:05]} dxe4 {[%emt 0:00:05]} 4. Nxe4 {[%emt 0:00:07]} Nd7 {[%emt 0:00:04]} 5. Bc4 {[%emt 0:00:22]} Ngf6 {[%emt 0:00:06]} 6. Ng3 {[%emt 0:00:12]} e6 {[%emt 0:00:12]} 7. O-O {[%emt 0:00:12]} Be7 {[%emt 0:00:06]} 8. d3 {[%emt 0:00:18]} O-O {[%emt 0:00:19]} 9. Bg5 {[%emt 0:00:27]} b6 {[%emt 0:00:22]} 10. a3 {[%emt 0:00:39]} Bb7 {[%emt 0:00:11]} 11. b4 {[%emt 0:00:06]} c5 {[%emt 0:00:13]} 12. bxc5 {[%emt 0:00:26]} Bxc5 {[%emt 0:00:07]} 13. Ne4 {[%emt 0:00:23]} Be7 {[%emt 0:00:27]} 14. Qe2 {[%emt 0:00:22]} Nxe4 {[%emt 0:00:22]} 15. Bxe7 {[%emt 0:00:17]} Qxe7 {[%emt 0:00:10]} 16. dxe4 {[%emt 0:00:06]} Nf6 {[%emt 0:00:20]} 17. Bd3 {[%emt 0:00:32]} Rac8 {[%emt 0:02:17]} 18. e5 {[%emt 0:02:17]} Nd5 {[%emt 0:00:20]} 19. Qe4 {[%emt 0:02:08]} g6 {[%emt 0:00:42]} 20. Qg4 {[%emt 0:00:30]} Rfd8 {[%emt 0:04:00]} 21. Nd2 {[%emt 0:06:23]} Qc7 {[%emt 0:01:53]} 22. Rfe1 {[%emt 0:00:56]} Ne7 {[%emt 0:19:59]} 23. Nc4 {[%emt 0:03:33]} Nf5 {[%emt 0:01:48]} 24. Ne3 {[%emt 0:02:15]} Ng7 {[%emt 0:08:20]} 25. Nc4 {[%emt 0:01:29]} Nf5 {[%emt 0:02:04]} 26. Ne3 {[%emt 0:03:16]} Nd4 {[%emt 0:00:28]} 27. Nc4 {[%emt 0:00:13]} Nf5 {[%emt 0:00:43]} 28. Ne3 {[%emt 0:02:57]} Ng7 {[%emt 0:00:06]} 29. Qg3 {[%emt 0:02:18]} Qc5 {[%emt 0:03:11]} 30. Ng4 {[%emt 0:02:20]} Nh5 {[%emt 0:06:31]} 31. Nf6+ {[%emt 0:00:25]} Nxf6 {[%emt 0:00:46]} 32. exf6 {[%emt 0:00:08]} Qd4 {[%emt 0:00:41]} 33. Qg5 {[%emt 0:01:22]} Rd5 {[%emt 0:00:58]} 34. Qg3 {[%emt 0:02:28]} Qxf6 {[%emt 0:02:07]} 35. a4 {[%emt 0:06:49]} Rg5 {[%emt 0:00:23]} 36. Qe3 {[%emt 0:01:10]} Rxg2+ {[%emt 0:01:36]} 37. Kf1 {[%emt 0:00:20]} Rxh2 {[%emt 0:00:26]} 38. Ke2 {[%emt 0:00:29]} Rc5 {[%emt 0:01:04]} 39. Kd2 {[%emt 1:01:34]} Rxf2+ {[%emt 0:01:00]} 40. Re2 {[%emt 0:00:00]} Qc3+ {[%emt 0:00:08]} 41. Kd1 {[%emt 0:00:00]} Qxa1+ {[%emt 0:00:07]} 42. Kd2 {[%emt 0:00:00]} Qc3+ {[%emt 0:00:29]} 43. Kd1 {[%emt 0:00:00]} Rf1+ {[%emt 0:00:06]} 44. Re1 {[%emt 0:00:00]} Bf3+ {[%emt 0:00:14]} 45. Kc1 {[%emt 0:00:00]} Rxe1+ {[%emt 0:00:12]} 46. Qxe1 {[%emt 0:00:00]} Qxe1+ {[%emt 0:00:02]} 47. Kb2 {[%emt 0:00:00]} Be4 {[%emt 0:00:43]} 48. Bxe4 {[%emt 0:00:00]} Qxe4 {[%emt 0:00:04]} 49. a5 {[%emt 0:00:00]} Qb4+ {[%emt 0:00:14]} 50. Kc1 {[%emt 0:00:00]} Qc3 {[%emt 0:00:06]} 51. Kb1 {[%emt 0:00:00]} Qxc2+ {[%emt 0:00:10]} 52. Ka1 {[%emt 0:00:00]} Rxa5# {[%emt 0:00:05]} 0-1